[Event "Titled Tuesday Blitz May 2 Early 2023"]
[White "Gupta, Abhijeet"]
[Black "Colas, Joshua"]
[WhiteFideId "5010608"]
[BlackFideId "2044447"]
[WhiteElo "2528"]
[BlackElo "2347"]
[Result "1-0"]
[Round "03"]
[TimeControl "180+2"]
[Date "2023.05.02"]
[WhiteClock "0:00:19"]
[BlackClock "0:00:04"]

1. d4 {[%clk 0:03:00]}  d5 {[%clk 0:02:58]} 2. Nf3 {[%clk 0:03:00]}  Nf6 {[%clk 0:02:58]} 3. Bf4 {[%clk 0:03:00]}  e6 {[%clk 0:02:54]} 4. e3 {[%clk 0:03:00]}  Bd6 {[%clk 0:02:49]} 5. Nbd2 {[%clk 0:03:00]}  O-O {[%clk 0:02:48]} 6. c3 {[%clk 0:02:58]}  c5 {[%clk 0:02:47]} 7. Ne5 {[%clk 0:02:56]}  Qc7 {[%clk 0:02:42]} 8. Bd3 {[%clk 0:02:56]}  Nfd7 {[%clk 0:02:37]} 9. Ndf3 {[%clk 0:02:33]}  f6 {[%clk 0:02:32]} 10. Nxd7 {[%clk 0:02:29]}  Nxd7 {[%clk 0:02:25]} 11. Bg3 {[%clk 0:02:23]}  b6 {[%clk 0:02:21]} 12. O-O {[%clk 0:02:22]}  Bb7 {[%clk 0:02:20]} 13. Re1 {[%clk 0:02:16]}  f5 {[%clk 0:02:18]} 14. Bb5 {[%clk 0:02:06]}  Bc6 {[%clk 0:02:12]} 15. a4 {[%clk 0:02:02]}  a6 {[%clk 0:02:07]} 16. Bf1 {[%clk 0:01:50]}  Bxg3 {[%clk 0:02:03]} 17. hxg3 {[%clk 0:01:49]}  e5 {[%clk 0:02:00]} 18. dxe5 {[%clk 0:01:35]}  Nxe5 {[%clk 0:01:59]} 19. Nxe5 {[%clk 0:01:35]}  Qxe5 {[%clk 0:02:00]} 20. c4 {[%clk 0:01:33]}  dxc4 {[%clk 0:01:51]} 21. Bxc4+ {[%clk 0:01:34]}  Kh8 {[%clk 0:01:51]} 22. Qc2 {[%clk 0:01:15]}  b5 {[%clk 0:01:44]} 23. Be2 {[%clk 0:01:14]}  Be4 {[%clk 0:01:07]} 24. Qc1 {[%clk 0:01:11]}  c4 {[%clk 0:01:06]} 25. Rd1 {[%clk 0:01:09]}  Rad8 {[%clk 0:00:55]} 26. axb5 {[%clk 0:01:06]}  axb5 {[%clk 0:00:56]} 27. Ra7 {[%clk 0:00:56]}  Rxd1+ {[%clk 0:00:54]} 28. Bxd1 {[%clk 0:00:56]}  Ra8 {[%clk 0:00:46]} 29. Rd7 {[%clk 0:00:49]}  h6 {[%clk 0:00:46]} 30. Bf3 {[%clk 0:00:48]}  Ra2 {[%clk 0:00:38]} 31. Bxe4 {[%clk 0:00:43]}  fxe4 {[%clk 0:00:38]} 32. Rd2 {[%clk 0:00:33]}  b4 {[%clk 0:00:25]} 33. Qb1 {[%clk 0:00:21]}  b3 {[%clk 0:00:21]} 34. Rd8+ {[%clk 0:00:20]}  Kh7 {[%clk 0:00:21]} 35. Rd4 {[%clk 0:00:21]}  c3 {[%clk 0:00:13]} 36. bxc3 {[%clk 0:00:20]}  Qf5 {[%clk 0:00:06]} 37. f4 {[%clk 0:00:20]}  Rc2 {[%clk 0:00:02]} 38. Qxb3 {[%clk 0:00:17]}  Rc1+ {[%clk 0:00:03]} 39. Rd1 {[%clk 0:00:17]}  Rxd1+ {[%clk 0:00:02]} 40. Qxd1 {[%clk 0:00:18]}  Qc5 {[%clk 0:00:02]} 41. Qd4 {[%clk 0:00:18]}  Qc6 {[%clk 0:00:02]} 42. g4 {[%clk 0:00:18]}  Qb7 {[%clk 0:00:03]} 43. Kh2 {[%clk 0:00:18]}  Qb1 {[%clk 0:00:03]} 44. c4 {[%clk 0:00:18]}  Qc2 {[%clk 0:00:04]} 45. c5 {[%clk 0:00:18]}  Kg8 {[%clk 0:00:03]} 46. Qd5+ {[%clk 0:00:18]}  Kh7 {[%clk 0:00:04]} 47. c6 {[%clk 0:00:18]}  Kh8 {[%clk 0:00:03]} 48. Qd8+ {[%clk 0:00:18]}  Kh7 {[%clk 0:00:04]} 49. c7 {[%clk 0:00:19]}  Qf2 {[%clk 0:00:04]} 50. c8=Q {[%clk 0:00:19]} 1-0


[Site "https://www.chess.com"]

[Event "Titled Tuesday Blitz May 2 Early 2023"]
[White "Levitskiy, Andrey"]
[Black "Van Foreest, Jorden"]
[WhiteFideId "14132885"]
[BlackFideId "1039784"]
[WhiteElo "2341"]
[BlackElo "2633"]
[Result "0-1"]
[Round "03"]
[TimeControl "180+2"]
[Date "2023.05.02"]
[WhiteClock "0:00:03"]
[BlackClock "0:01:23"]

1. e4 {[%clk 0:03:00]}  e5 {[%clk 0:03:00]} 2. Nf3 {[%clk 0:03:01]}  Nc6 {[%clk 0:02:59]} 3. Bc4 {[%clk 0:03:00]}  Bc5 {[%clk 0:02:57]} 4. c3 {[%clk 0:02:58]}  Nf6 {[%clk 0:02:56]} 5. d3 {[%clk 0:02:59]}  d6 {[%clk 0:02:55]} 6. h3 {[%clk 0:02:56]}  a6 {[%clk 0:02:55]} 7. Bb3 {[%clk 0:02:55]}  Ba7 {[%clk 0:02:55]} 8. Nbd2 {[%clk 0:02:55]}  h6 {[%clk 0:02:51]} 9. Nf1 {[%clk 0:02:55]}  Ne7 {[%clk 0:02:51]} 10. Be3 {[%clk 0:02:54]}  Ng6 {[%clk 0:02:48]} 11. Bxa7 {[%clk 0:02:47]}  Rxa7 {[%clk 0:02:49]} 12. Ng3 {[%clk 0:02:45]}  O-O {[%clk 0:02:49]} 13. O-O {[%clk 0:02:32]}  Re8 {[%clk 0:02:43]} 14. Re1 {[%clk 0:02:30]}  c6 {[%clk 0:02:38]} 15. d4 {[%clk 0:02:27]}  Ra8 {[%clk 0:02:35]} 16. Qc2 {[%clk 0:02:07]}  Be6 {[%clk 0:02:20]} 17. Rad1 {[%clk 0:02:06]}  Qc7 {[%clk 0:02:17]} 18. a4 {[%clk 0:01:53]}  Rad8 {[%clk 0:02:15]} 19. Bxe6 {[%clk 0:01:50]}  Rxe6 {[%clk 0:02:14]} 20. Qb3 {[%clk 0:01:49]}  Ree8 {[%clk 0:02:03]} 21. Nf5 {[%clk 0:01:41]}  exd4 {[%clk 0:02:02]} 22. Rxd4 {[%clk 0:00:50]}  c5 {[%clk 0:02:01]} 23. Rc4 {[%clk 0:00:50]}  Qc6 {[%clk 0:01:46]} 24. a5 {[%clk 0:00:37]}  Nxe4 {[%clk 0:01:37]} 25. Qc2 {[%clk 0:00:09]}  d5 {[%clk 0:01:33]} 26. Ra4 {[%clk 0:00:08]}  Nf4 {[%clk 0:01:32]} 27. Ng3 {[%clk 0:00:03]}  Qg6 {[%clk 0:01:31]} 28. Nh4 {[%clk 0:00:01]}  Nxg3 {[%clk 0:01:25]} 29. Nxg6 {[%clk 0:00:01]}  Rxe1+ {[%clk 0:01:24]} 30. Kh2 {[%clk 0:00:02]}  Nf1+ {[%clk 0:01:25]} 31. Kg1 {[%clk 0:00:02]}  Ne3+ {[%clk 0:01:26]} 32. Kh2 {[%clk 0:00:02]}  Nxc2 {[%clk 0:01:26]} 33. Nxf4 {[%clk 0:00:03]}  d4 {[%clk 0:01:23]} 0-1


[Site "https://www.chess.com"]

[Event "Titled Tuesday Blitz May 2 Early 2023"]
[White "Prohaszka, Peter"]
[Black "Sjugirov, Sanan"]
[WhiteFideId "726265"]
[BlackFideId "4189302"]
[WhiteElo "2626"]
[BlackElo "2569"]
[Result "1/2-1/2"]
[Round "03"]
[TimeControl "180+2"]
[Date "2023.05.02"]
[WhiteClock "0:00:05"]
[BlackClock "0:00:06"]

1. d4 {[%clk 0:03:00]}  Nf6 {[%clk 0:03:00]} 2. c3 {[%clk 0:02:59]}  g6 {[%clk 0:02:58]} 3. Bg5 {[%clk 0:02:58]}  Bg7 {[%clk 0:02:58]} 4. Nd2 {[%clk 0:02:58]}  d6 {[%clk 0:02:57]} 5. Ngf3 {[%clk 0:02:59]}  O-O {[%clk 0:02:57]} 6. h3 {[%clk 0:02:58]}  h6 {[%clk 0:02:51]} 7. Bf4 {[%clk 0:02:53]}  Nc6 {[%clk 0:02:43]} 8. Bh2 {[%clk 0:02:51]}  Qe8 {[%clk 0:02:40]} 9. e4 {[%clk 0:02:45]}  e5 {[%clk 0:02:34]} 10. dxe5 {[%clk 0:02:45]}  Nxe5 {[%clk 0:02:34]} 11. Nxe5 {[%clk 0:02:37]}  dxe5 {[%clk 0:02:35]} 12. Be2 {[%clk 0:02:37]}  Qe7 {[%clk 0:02:31]} 13. O-O {[%clk 0:02:36]}  Rd8 {[%clk 0:02:31]} 14. Qc2 {[%clk 0:02:36]}  Nd7 {[%clk 0:02:00]} 15. a4 {[%clk 0:02:33]}  Nc5 {[%clk 0:01:52]} 16. b4 {[%clk 0:02:00]}  Ne6 {[%clk 0:01:52]} 17. Rfd1 {[%clk 0:01:49]}  Nf4 {[%clk 0:01:52]} 18. Bf1 {[%clk 0:01:13]}  Be6 {[%clk 0:01:50]} 19. a5 {[%clk 0:01:12]}  g5 {[%clk 0:01:40]} 20. Nc4 {[%clk 0:00:47]}  h5 {[%clk 0:01:16]} 21. Ne3 {[%clk 0:00:47]}  g4 {[%clk 0:01:17]} 22. hxg4 {[%clk 0:00:46]}  hxg4 {[%clk 0:01:18]} 23. Nf5 {[%clk 0:00:47]}  Qg5 {[%clk 0:01:08]} 24. Rxd8+ {[%clk 0:00:43]}  Rxd8 {[%clk 0:01:08]} 25. Rd1 {[%clk 0:00:41]}  a6 {[%clk 0:00:25]} 26. c4 {[%clk 0:00:21]}  c6 {[%clk 0:00:22]} 27. c5 {[%clk 0:00:21]}  Bxf5 {[%clk 0:00:19]} 28. exf5 {[%clk 0:00:14]}  Rxd1 {[%clk 0:00:18]} 29. Qxd1 {[%clk 0:00:15]}  Nd5 {[%clk 0:00:18]} 30. Qc2 {[%clk 0:00:03]}  Bf6 {[%clk 0:00:12]} 31. Bg3 {[%clk 0:00:04]}  Kg7 {[%clk 0:00:08]} 32. Bc4 {[%clk 0:00:04]}  Nxb4 {[%clk 0:00:07]} 33. Qb2 {[%clk 0:00:05]}  Nd5 {[%clk 0:00:06]} 34. Bxd5 {[%clk 0:00:05]}  cxd5 {[%clk 0:00:07]} 35. Qxb7 {[%clk 0:00:06]}  Qc1+ {[%clk 0:00:05]} 36. Kh2 {[%clk 0:00:06]}  Qxc5 {[%clk 0:00:05]} 37. Qxa6 {[%clk 0:00:07]}  d4 {[%clk 0:00:04]} 38. Qb6 {[%clk 0:00:07]}  Qc8 {[%clk 0:00:03]} 39. a6 {[%clk 0:00:04]}  d3 {[%clk 0:00:03]} 40. Qd6 {[%clk 0:00:03]}  d2 {[%clk 0:00:03]} 41. Qxd2 {[%clk 0:00:03]}  Qxa6 {[%clk 0:00:03]} 42. Qe3 {[%clk 0:00:02]}  Qc4 {[%clk 0:00:01]} 43. Bxe5 {[%clk 0:00:02]}  Bxe5+ {[%clk 0:00:02]} 44. Qxe5+ {[%clk 0:00:03]}  Kg8 {[%clk 0:00:02]} 45. Kg3 {[%clk 0:00:03]}  Qd3+ {[%clk 0:00:02]} 46. Kxg4 {[%clk 0:00:03]}  Qd1+ {[%clk 0:00:02]} 47. Kg3 {[%clk 0:00:04]}  Qd3+ {[%clk 0:00:02]} 48. Qe3 {[%clk 0:00:04]}  Qxf5 {[%clk 0:00:03]} 49. Qf4 {[%clk 0:00:04]}  Qd3+ {[%clk 0:00:03]} 50. Qf3 {[%clk 0:00:04]}  Qd6+ {[%clk 0:00:03]} 51. Qf4 {[%clk 0:00:05]}  Qd3+ {[%clk 0:00:03]} 52. f3 {[%clk 0:00:05]}  Qc2 {[%clk 0:00:03]} 53. Qg5+ {[%clk 0:00:06]}  Kf8 {[%clk 0:00:03]} 54. Qd8+ {[%clk 0:00:05]}  Kg7 {[%clk 0:00:04]} 55. Qd4+ {[%clk 0:00:06]}  Kf8 {[%clk 0:00:04]} 56. Qh8+ {[%clk 0:00:06]}  Ke7 {[%clk 0:00:04]} 57. Qh4+ {[%clk 0:00:07]}  Kf8 {[%clk 0:00:04]} 58. Qe4 {[%clk 0:00:07]}  Qc7+ {[%clk 0:00:04]} 59. Qf4 {[%clk 0:00:08]}  Qb6 {[%clk 0:00:03]} 60. Qf5 {[%clk 0:00:07]}  Qd6+ {[%clk 0:00:04]} 61. Kh3 {[%clk 0:00:07]}  Qb6 {[%clk 0:00:04]} 62. f4 {[%clk 0:00:07]}  Qh6+ {[%clk 0:00:03]} 63. Kg3 {[%clk 0:00:07]}  Qb6 {[%clk 0:00:04]} 64. Qe4 {[%clk 0:00:06]}  Qb3+ {[%clk 0:00:04]} 65. Qf3 {[%clk 0:00:07]}  Qb2 {[%clk 0:00:03]} 66. Kh3 {[%clk 0:00:07]}  Qh8+ {[%clk 0:00:03]} 67. Kg3 {[%clk 0:00:08]}  Qg7+ {[%clk 0:00:04]} 68. Kh2 {[%clk 0:00:08]}  Qh8+ {[%clk 0:00:04]} 69. Kg1 {[%clk 0:00:08]}  Qd4+ {[%clk 0:00:04]} 70. Kf1 {[%clk 0:00:08]}  Qa1+ {[%clk 0:00:04]} 71. Kf2 {[%clk 0:00:08]}  Qd4+ {[%clk 0:00:04]} 72. Qe3 {[%clk 0:00:09]}  Qb2+ {[%clk 0:00:05]} 73. Kf3 {[%clk 0:00:10]}  Qb7+ {[%clk 0:00:05]} 74. Kg3 {[%clk 0:00:08]}  Qb4 {[%clk 0:00:05]} 75. Kh3 {[%clk 0:00:07]}  Qd6 {[%clk 0:00:05]} 76. g4 {[%clk 0:00:07]}  Qh6+ {[%clk 0:00:05]} 77. Kg3 {[%clk 0:00:07]}  Qh1 {[%clk 0:00:04]} 78. g5 {[%clk 0:00:07]}  Kg7 {[%clk 0:00:04]} 79. Qd4+ {[%clk 0:00:07]}  Kg8 {[%clk 0:00:04]} 80. Qd8+ {[%clk 0:00:07]}  Kg7 {[%clk 0:00:05]} 81. Qd4+ {[%clk 0:00:07]}  Kg8 {[%clk 0:00:05]} 82. Qe3 {[%clk 0:00:07]}  Kg7 {[%clk 0:00:06]} 83. Qf3 {[%clk 0:00:08]}  Qg1+ {[%clk 0:00:05]} 84. Kh4 {[%clk 0:00:08]}  Qh2+ {[%clk 0:00:06]} 85. Kg4 {[%clk 0:00:09]}  Qg1+ {[%clk 0:00:06]} 86. Qg3 {[%clk 0:00:09]}  Qd1+ {[%clk 0:00:06]} 87. Qf3 {[%clk 0:00:08]}  Qg1+ {[%clk 0:00:06]} 88. Kf5 {[%clk 0:00:08]}  Qb1+ {[%clk 0:00:06]} 89. Qe4 {[%clk 0:00:08]}  Qb5+ {[%clk 0:00:06]} 90. Qe5+ {[%clk 0:00:08]}  Qxe5+ {[%clk 0:00:05]} 91. Kxe5 {[%clk 0:00:08]}  Kg6 {[%clk 0:00:05]} 92. Kd6 {[%clk 0:00:06]}  Kf5 {[%clk 0:00:05]} 93. Ke7 {[%clk 0:00:02]}  Kxf4 {[%clk 0:00:06]} 94. Kf6 {[%clk 0:00:03]}  Kg4 {[%clk 0:00:06]} 95. g6 {[%clk 0:00:04]}  fxg6 {[%clk 0:00:06]} 96. Kxg6 {[%clk 0:00:05]} 1/2-1/2


[Site "https://www.chess.com"]

[Event "Titled Tuesday Blitz May 2 Early 2023"]
[White "Grigoriants, Sergey"]
[Black "Rakotomaharo, Fy Antenaina"]
[WhiteFideId "4130804"]
[BlackFideId "13100050"]
[WhiteElo "2502"]
[BlackElo "2427"]
[Result "1/2-1/2"]
[Round "03"]
[TimeControl "180+2"]
[Date "2023.05.02"]
[WhiteClock "0:00:04"]
[BlackClock "0:00:16"]

1. d4 {[%clk 0:02:59]}  Nf6 {[%clk 0:02:53]} 2. c4 {[%clk 0:02:57]}  g6 {[%clk 0:02:54]} 3. f3 {[%clk 0:02:55]}  d5 {[%clk 0:02:54]} 4. cxd5 {[%clk 0:02:54]}  Nxd5 {[%clk 0:02:55]} 5. e4 {[%clk 0:02:54]}  Nb6 {[%clk 0:02:56]} 6. Nc3 {[%clk 0:02:54]}  Bg7 {[%clk 0:02:56]} 7. Be3 {[%clk 0:02:55]}  O-O {[%clk 0:02:55]} 8. Qd2 {[%clk 0:02:55]}  Nc6 {[%clk 0:02:53]} 9. O-O-O {[%clk 0:02:54]}  Qd6 {[%clk 0:02:53]} 10. Nb5 {[%clk 0:02:42]}  Qd7 {[%clk 0:02:53]} 11. h4 {[%clk 0:02:38]}  a6 {[%clk 0:02:48]} 12. Nc3 {[%clk 0:02:36]}  Rd8 {[%clk 0:02:48]} 13. d5 {[%clk 0:02:32]}  Na5 {[%clk 0:02:39]} 14. Bd4 {[%clk 0:02:29]}  Nac4 {[%clk 0:02:34]} 15. Qf2 {[%clk 0:02:17]}  e5 {[%clk 0:02:28]} 16. Bxb6 {[%clk 0:01:46]}  Nxb6 {[%clk 0:02:29]} 17. h5 {[%clk 0:01:46]}  Na4 {[%clk 0:02:24]} 18. Nge2 {[%clk 0:01:43]}  b5 {[%clk 0:02:15]} 19. hxg6 {[%clk 0:01:41]}  hxg6 {[%clk 0:02:13]} 20. Nxa4 {[%clk 0:01:24]}  bxa4 {[%clk 0:02:13]} 21. Nc3 {[%clk 0:01:25]}  Rb8 {[%clk 0:02:02]} 22. Bd3 {[%clk 0:01:14]}  a3 {[%clk 0:01:40]} 23. b3 {[%clk 0:01:10]}  Qe7 {[%clk 0:01:37]} 24. Bc4 {[%clk 0:01:05]}  Qb4 {[%clk 0:01:33]} 25. Kc2 {[%clk 0:01:03]}  Qxc4 {[%clk 0:01:31]} 26. Qh4 {[%clk 0:00:59]}  Qxc3+ {[%clk 0:01:09]} 27. Kxc3 {[%clk 0:00:58]}  Bd7 {[%clk 0:01:10]} 28. Rh2 {[%clk 0:00:49]}  a5 {[%clk 0:00:51]} 29. Rdh1 {[%clk 0:00:46]}  a4 {[%clk 0:00:51]} 30. b4 {[%clk 0:00:43]}  c6 {[%clk 0:00:46]} 31. d6 {[%clk 0:00:20]}  Be6 {[%clk 0:00:44]} 32. Qg5 {[%clk 0:00:18]}  Rxd6 {[%clk 0:00:24]} 33. Rh8+ {[%clk 0:00:07]}  Bxh8 {[%clk 0:00:25]} 34. Rxh8+ {[%clk 0:00:08]}  Kxh8 {[%clk 0:00:26]} 35. Qxe5+ {[%clk 0:00:08]}  Kg8 {[%clk 0:00:26]} 36. Qxd6 {[%clk 0:00:09]}  Rc8 {[%clk 0:00:25]} 37. f4 {[%clk 0:00:04]}  Bxa2 {[%clk 0:00:25]} 38. f5 {[%clk 0:00:05]}  gxf5 {[%clk 0:00:17]} 39. exf5 {[%clk 0:00:05]}  Bd5 {[%clk 0:00:18]} 40. f6 {[%clk 0:00:05]}  a2 {[%clk 0:00:16]} 41. Qg3+ {[%clk 0:00:04]}  Kf8 {[%clk 0:00:16]} 42. Qd6+ {[%clk 0:00:04]}  Kg8 {[%clk 0:00:17]} 43. Qg3+ {[%clk 0:00:04]}  Kf8 {[%clk 0:00:16]} 44. Qd6+ {[%clk 0:00:04]}  Kg8 {[%clk 0:00:16]} 1/2-1/2


[Site "https://www.chess.com"]

[Event "Titled Tuesday Blitz May 2 Early 2023"]
[White "Lenderman, Aleksandr"]
[Black "Riff, Vincent"]
[WhiteFideId "2021285"]
[BlackFideId "617776"]
[WhiteElo "2607"]
[BlackElo "2369"]
[Result "1-0"]
[Round "03"]
[TimeControl "180+2"]
[Date "2023.05.02"]
[WhiteClock "0:01:43"]
[BlackClock "0:02:07"]

1. Nf3 {[%clk 0:02:58]}  d5 {[%clk 0:02:58]} 2. e3 {[%clk 0:02:56]}  Nf6 {[%clk 0:02:56]} 3. c4 {[%clk 0:02:52]}  c6 {[%clk 0:02:56]} 4. Nc3 {[%clk 0:02:51]}  a6 {[%clk 0:02:53]} 5. d4 {[%clk 0:02:47]}  Bf5 {[%clk 0:02:52]} 6. Ne5 {[%clk 0:02:43]}  e6 {[%clk 0:02:52]} 7. g4 {[%clk 0:02:42]}  Be4 {[%clk 0:02:49]} 8. f3 {[%clk 0:02:40]}  Bg6 {[%clk 0:02:49]} 9. h4 {[%clk 0:02:27]}  h5 {[%clk 0:02:49]} 10. g5 {[%clk 0:02:16]}  Nfd7 {[%clk 0:02:45]} 11. Nxg6 {[%clk 0:02:16]}  fxg6 {[%clk 0:02:46]} 12. Bd3 {[%clk 0:02:16]}  Bb4 {[%clk 0:02:38]} 13. Bxg6+ {[%clk 0:02:13]}  Ke7 {[%clk 0:02:38]} 14. O-O {[%clk 0:02:09]}  Nf8 {[%clk 0:02:37]} 15. Bd3 {[%clk 0:02:08]}  Nbd7 {[%clk 0:02:36]} 16. f4 {[%clk 0:01:58]}  b5 {[%clk 0:02:24]} 17. cxd5 {[%clk 0:01:57]}  cxd5 {[%clk 0:02:24]} 18. f5 {[%clk 0:01:56]}  Qc7 {[%clk 0:02:22]} 19. Kg2 {[%clk 0:01:49]}  Bxc3 {[%clk 0:02:19]} 20. bxc3 {[%clk 0:01:50]}  Qxc3 {[%clk 0:02:19]} 21. Bd2 {[%clk 0:01:50]}  Qc6 {[%clk 0:02:10]} 22. Bb4+ {[%clk 0:01:48]}  Ke8 {[%clk 0:02:10]} 23. Rc1 {[%clk 0:01:47]}  Qb7 {[%clk 0:02:09]} 24. fxe6 {[%clk 0:01:46]}  Nxe6 {[%clk 0:02:07]} 25. Bg6+ {[%clk 0:01:47]}  Kd8 {[%clk 0:02:07]} 26. Ba5+ {[%clk 0:01:47]}  Nb6 {[%clk 0:02:07]} 27. Rf7 {[%clk 0:01:43]} 1-0


[Site "https://www.chess.com"]

[Event "Titled Tuesday Blitz May 2 Early 2023"]
[White "Arkell, Keith C"]
[Black "Ter-Sahakyan, Samvel"]
[WhiteFideId "400270"]
[BlackFideId "13302531"]
[WhiteElo "2319"]
[BlackElo "2566"]
[Result "0-1"]
[Round "03"]
[TimeControl "180+2"]
[Date "2023.05.02"]
[WhiteClock "0:00:29"]
[BlackClock "0:00:48"]

1. d4 {[%clk 0:02:48]}  Nf6 {[%clk 0:02:59]} 2. Nf3 {[%clk 0:02:47]}  d5 {[%clk 0:02:58]} 3. c4 {[%clk 0:02:47]}  e6 {[%clk 0:02:58]} 4. cxd5 {[%clk 0:02:48]}  exd5 {[%clk 0:02:58]} 5. Nc3 {[%clk 0:02:48]}  h6 {[%clk 0:02:52]} 6. Bf4 {[%clk 0:02:47]}  Bd6 {[%clk 0:02:52]} 7. Bxd6 {[%clk 0:02:47]}  Qxd6 {[%clk 0:02:53]} 8. e3 {[%clk 0:02:47]}  O-O {[%clk 0:02:50]} 9. Be2 {[%clk 0:02:45]}  Bg4 {[%clk 0:02:46]} 10. O-O {[%clk 0:02:44]}  Bxf3 {[%clk 0:02:45]} 11. Bxf3 {[%clk 0:02:44]}  c6 {[%clk 0:02:46]} 12. Qc2 {[%clk 0:02:42]}  Nbd7 {[%clk 0:02:44]} 13. b4 {[%clk 0:02:42]}  a6 {[%clk 0:02:28]} 14. a4 {[%clk 0:02:40]}  b5 {[%clk 0:02:28]} 15. Rfb1 {[%clk 0:02:39]}  Nb6 {[%clk 0:02:24]} 16. Ra2 {[%clk 0:02:38]}  Nc4 {[%clk 0:02:21]} 17. Qb3 {[%clk 0:02:37]}  Rfe8 {[%clk 0:02:10]} 18. Rba1 {[%clk 0:02:37]}  Rab8 {[%clk 0:02:11]} 19. axb5 {[%clk 0:02:37]}  axb5 {[%clk 0:02:11]} 20. g3 {[%clk 0:02:32]}  h5 {[%clk 0:02:01]} 21. Ne2 {[%clk 0:02:29]}  h4 {[%clk 0:01:58]} 22. Nf4 {[%clk 0:02:28]}  g5 {[%clk 0:01:54]} 23. Nd3 {[%clk 0:02:23]}  Kg7 {[%clk 0:01:54]} 24. Bg2 {[%clk 0:02:18]}  hxg3 {[%clk 0:01:50]} 25. hxg3 {[%clk 0:02:17]}  Ng4 {[%clk 0:01:51]} 26. Re2 {[%clk 0:02:06]}  Qh6 {[%clk 0:01:48]} 27. Bf3 {[%clk 0:02:01]}  Qh2+ {[%clk 0:01:45]} 28. Kf1 {[%clk 0:02:01]}  Re6 {[%clk 0:01:41]} 29. Ne5 {[%clk 0:01:49]}  Ngxe5 {[%clk 0:01:19]} 30. dxe5 {[%clk 0:01:50]}  Nxe5 {[%clk 0:01:18]} 31. Qc3 {[%clk 0:01:41]}  Rbe8 {[%clk 0:01:18]} 32. Ra7 {[%clk 0:01:34]}  Rf6 {[%clk 0:01:18]} 33. Bg2 {[%clk 0:01:24]}  Qxg3 {[%clk 0:01:18]} 34. Ra3 {[%clk 0:00:46]}  Rh8 {[%clk 0:01:09]} 35. e4 {[%clk 0:00:46]}  Qxc3 {[%clk 0:01:09]} 36. Rxc3 {[%clk 0:00:46]}  d4 {[%clk 0:01:09]} 37. Rc5 {[%clk 0:00:45]}  Re6 {[%clk 0:00:59]} 38. Rd2 {[%clk 0:00:43]}  Rd8 {[%clk 0:00:55]} 39. Ke2 {[%clk 0:00:41]}  d3+ {[%clk 0:00:54]} 40. Ke1 {[%clk 0:00:37]}  Rd4 {[%clk 0:00:54]} 41. Rb2 {[%clk 0:00:30]}  g4 {[%clk 0:00:49]} 42. Kd2 {[%clk 0:00:30]}  Nc4+ {[%clk 0:00:49]} 43. Kc3 {[%clk 0:00:28]}  Nxb2 {[%clk 0:00:48]} 44. Kxd4 {[%clk 0:00:29]}  d2 {[%clk 0:00:48]} 0-1


[Site "https://www.chess.com"]

[Event "Titled Tuesday Blitz May 2 Early 2023"]
[White "Baskin, Robert"]
[Black "Zhigalko, Sergei"]
[WhiteFideId "24662402"]
[BlackFideId "13502956"]
[WhiteElo "2472"]
[BlackElo "2626"]
[Result "1-0"]
[Round "03"]
[TimeControl "180+2"]
[Date "2023.05.02"]
[WhiteClock "0:00:10"]
[BlackClock "0:00:14"]

1. d4 {[%clk 0:03:00]}  Nf6 {[%clk 0:03:00]} 2. c4 {[%clk 0:03:00]}  e6 {[%clk 0:03:00]} 3. Nf3 {[%clk 0:03:00]}  b6 {[%clk 0:03:00]} 4. g3 {[%clk 0:03:00]}  Ba6 {[%clk 0:03:00]} 5. Qc2 {[%clk 0:02:55]}  Bb4+ {[%clk 0:03:00]} 6. Bd2 {[%clk 0:02:49]}  Be7 {[%clk 0:02:38]} 7. e4 {[%clk 0:02:35]}  d5 {[%clk 0:02:35]} 8. cxd5 {[%clk 0:02:34]}  Bxf1 {[%clk 0:02:36]} 9. Kxf1 {[%clk 0:02:32]}  exd5 {[%clk 0:02:37]} 10. e5 {[%clk 0:02:31]}  Ne4 {[%clk 0:02:38]} 11. Nc3 {[%clk 0:02:28]}  Nxd2+ {[%clk 0:02:37]} 12. Qxd2 {[%clk 0:02:27]}  Qd7 {[%clk 0:02:37]} 13. Kg2 {[%clk 0:02:26]}  Nc6 {[%clk 0:02:37]} 14. h4 {[%clk 0:02:23]}  Nd8 {[%clk 0:02:37]} 15. Ne2 {[%clk 0:02:20]}  Ne6 {[%clk 0:02:37]} 16. Rac1 {[%clk 0:02:09]}  O-O-O {[%clk 0:02:36]} 17. b4 {[%clk 0:02:02]}  Kb7 {[%clk 0:02:35]} 18. Qc3 {[%clk 0:01:45]}  h6 {[%clk 0:02:16]} 19. Rc2 {[%clk 0:01:27]}  g5 {[%clk 0:02:14]} 20. h5 {[%clk 0:01:20]}  Rc8 {[%clk 0:01:39]} 21. Ra1 {[%clk 0:01:10]}  g4 {[%clk 0:01:17]} 22. Ne1 {[%clk 0:01:09]}  Ng5 {[%clk 0:01:07]} 23. a4 {[%clk 0:01:02]}  Qf5 {[%clk 0:00:58]} 24. Qc6+ {[%clk 0:00:48]}  Kb8 {[%clk 0:00:58]} 25. a5 {[%clk 0:00:43]}  Qe6 {[%clk 0:00:56]} 26. Qxe6 {[%clk 0:00:20]}  fxe6 {[%clk 0:00:52]} 27. Nf4 {[%clk 0:00:20]}  Bxb4 {[%clk 0:00:49]} 28. Ned3 {[%clk 0:00:19]}  Bxa5 {[%clk 0:00:47]} 29. Nc5 {[%clk 0:00:19]}  bxc5 {[%clk 0:00:46]} 30. Rxa5 {[%clk 0:00:18]}  cxd4 {[%clk 0:00:24]} 31. Rb2+ {[%clk 0:00:18]}  Ka8 {[%clk 0:00:24]} 32. Rba2 {[%clk 0:00:18]}  Kb7 {[%clk 0:00:25]} 33. Rxa7+ {[%clk 0:00:15]}  Kc6 {[%clk 0:00:26]} 34. R2a6+ {[%clk 0:00:16]}  Kd7 {[%clk 0:00:25]} 35. Rd6+ {[%clk 0:00:16]}  Ke8 {[%clk 0:00:25]} 36. Rc6 {[%clk 0:00:16]}  Rh7 {[%clk 0:00:16]} 37. Nxe6 {[%clk 0:00:15]}  Nxe6 {[%clk 0:00:15]} 38. Rxe6+ {[%clk 0:00:16]}  Re7 {[%clk 0:00:13]} 39. Rxh6 {[%clk 0:00:13]}  Rxe5 {[%clk 0:00:14]} 40. Rh8+ {[%clk 0:00:12]}  Kd7 {[%clk 0:00:14]} 41. Rh7+ {[%clk 0:00:10]} 1-0


[Site "https://www.chess.com"]

[Event "Titled Tuesday Blitz May 2 Early 2023"]
[White "Lenaerts, Lennert"]
[Black "Suleymanli, Aydin"]
[WhiteFideId "211435"]
[BlackFideId "13413937"]
[WhiteElo "2334"]
[BlackElo "2559"]
[Result "0-1"]
[Round "03"]
[TimeControl "180+2"]
[Date "2023.05.02"]
[WhiteClock "0:02:35"]
[BlackClock "0:01:35"]

1. d4 {[%clk 0:03:00]}  e6 {[%clk 0:02:56]} 2. c4 {[%clk 0:03:01]}  d5 {[%clk 0:02:56]} 3. Nc3 {[%clk 0:03:01]}  c6 {[%clk 0:02:56]} 4. e3 {[%clk 0:02:53]}  Nf6 {[%clk 0:02:54]} 5. Nf3 {[%clk 0:02:53]}  Nbd7 {[%clk 0:02:53]} 6. b3 {[%clk 0:02:53]}  Bb4 {[%clk 0:02:42]} 7. Bd2 {[%clk 0:02:53]}  O-O {[%clk 0:02:41]} 8. Bd3 {[%clk 0:02:52]}  Qe7 {[%clk 0:02:38]} 9. O-O {[%clk 0:02:53]}  b6 {[%clk 0:02:36]} 10. a3 {[%clk 0:02:49]}  Bxa3 {[%clk 0:02:32]} 11. e4 {[%clk 0:02:48]}  dxc4 {[%clk 0:02:12]} 12. bxc4 {[%clk 0:02:46]}  e5 {[%clk 0:02:02]} 13. Nxe5 {[%clk 0:02:37]}  Nxe5 {[%clk 0:01:59]} 14. dxe5 {[%clk 0:02:38]}  Ng4 {[%clk 0:01:50]} 15. Bf4 {[%clk 0:02:35]}  Bb2 {[%clk 0:01:35]} 0-1


[Site "https://www.chess.com"]